fUSD/lending_fUSD_20250522
["ID","MTS","AMOUNT","RATE_DAILY","PERIOD"]
[362005237,1747933861016,-420.0,0.00033424,5]
[362005238,1747933861025,-510.32,0.00033424,5]
[362005239,1747933861035,-561.89,0.00033424,5]
[362005240,1747933861045,-420.0,0.00033424,5]
[362005241,1747933861054,-384.24443422,0.00033424,5]
[362005242,1747933861063,-482.92,0.00033424,5]
[362005243,1747933861073,-640.96,0.00033424,5]
[362005244,1747933861083,-628.61,0.00033424,5]
[362005245,1747933861092,-676.98,0.00033424,5]
[362005246,1747933861102,-420.0,0.00033424,5]
[362005247,1747933861112,-508.22,0.00033424,5]
[362005248,1747933861122,-420.0,0.00033424,5]
[362005249,1747933861132,-420.0,0.00033424,5]
[362005250,1747933861141,-428.04,0.00033424,5]
[362005251,1747933861151,-208.22186618,0.00033424,5]
[362005252,1747933861161,-438.13,0.00033424,5]
[362005253,1747933861171,-420.0,0.00033424,5]
[362005254,1747933861182,-928.4,0.00033424,5]
[362005255,1747933861192,-420.0,0.00033424,5]
[362005256,1747933861201,-485.06,0.00033424,5]
[362005257,1747933861211,-559.16,0.00033424,5]
[362005258,1747933861220,-851.37,0.00033424,5]
[362005259,1747933861230,-420.0,0.00033424,5]
[362005260,1747933861239,-455.05,0.00033424,5]
[362005261,1747933861248,-281.8,0.00033424,5]
[362005262,1747933861257,-451.54,0.00033424,5]
[362005263,1747933861267,-488.65,0.00033424,5]
[362005264,1747933861349,-420.0,0.00033424,5]
[362005265,1747933861360,-420.0,0.00033424,5]
[362005266,1747933861370,-420.0,0.00033424,5]
[362005267,1747933861380,-439.74,0.00033424,5]
[362005268,1747933861390,-420.0,0.00033424,5]
[362005269,1747933861399,-579.3,0.00033424,5]
[362005270,1747933861409,-420.0,0.00033424,5]
[362005271,1747933861418,-1187.49,0.00033424,5]
[362005272,1747933861428,-456.47,0.00033424,5]
[362005273,1747933861438,-585.77,0.00033424,5]
[362005274,1747933861447,-485.73,0.00033424,5]
[362005275,1747933861457,-420.0,0.00033424,5]
[362005276,1747933861466,-420.0,0.00033424,5]
[362005277,1747933861477,-688.23,0.00033424,5]
[362005278,1747933861486,-420.0,0.00033424,5]
[362005279,1747933861496,-637.3,0.00033424,5]
[362005280,1747933861505,-420.0,0.00033424,5]
[362005281,1747933861515,-473.24,0.00033424,5]
[362005282,1747933861524,-535.16,0.00033424,5]
[362005283,1747933861534,-420.0,0.00033424,5]
[362005284,1747933861543,-420.0,0.00033424,5]
[362005285,1747933861553,-420.0,0.00033424,5]
[362005286,1747933861563,-420.0,0.00033424,5]
[362005287,1747933861572,-420.0,0.00033424,5]
[362005288,1747933861581,-151.0,0.00033424,7]
[362005289,1747933861591,-151.0,0.00033424,7]
[362005290,1747933861601,-151.0,0.00033424,7]
[362005291,1747933861611,-420.0,0.00033424,5]
[362005292,1747933861621,-420.0,0.00033424,5]
[362005293,1747933861631,-420.0,0.00033424,5]
[362005294,1747933861641,-1350.67,0.00033424,5]
[362005295,1747933861650,-420.0,0.00033424,5]
[362005296,1747933861660,-420.0,0.00033424,5]
[362005297,1747933861670,-420.0,0.00033424,5]
[362005298,1747933861679,-420.0,0.00033424,5]
[362005299,1747933861689,-560.40579102,0.00033424,5]
[362005300,1747933861698,-501.6,0.00033424,5]
[362005301,1747933861708,-607.22,0.00033424,5]
[362005302,1747933861717,-420.0,0.00033424,5]
[362005303,1747933861728,-420.0,0.00033424,5]
[362005304,1747933861741,-470.61,0.00033424,5]
[362005305,1747933861750,-566.25,0.00033424,5]
[362005306,1747933861761,-420.0,0.00033424,5]
[362005307,1747933861771,-475.69,0.00033424,5]
[362005308,1747933861781,-711.61,0.00033424,5]
[362005309,1747933861791,-420.0,0.00033424,5]
[362005310,1747933861801,-454.53,0.00033424,5]
[362005311,1747933861811,-420.0,0.00033424,5]
[362005312,1747933861820,-420.0,0.00033424,5]
[362005313,1747933861829,-420.0,0.00033424,5]
[362005314,1747933861838,-420.0,0.00033424,5]
[362005315,1747933861848,-420.0,0.00033424,5]
[362005316,1747933861858,-545.9,0.00033424,5]
[362005317,1747933861867,-420.0,0.00033424,5]
[362005318,1747933861876,-420.0,0.00033424,5]
[362005319,1747933861886,-589.57,0.00033424,5]
[362005320,1747933861895,-1563.4,0.00033424,5]
[362005321,1747933861905,-420.0,0.00033424,5]
[362005322,1747933861914,-481.76,0.00033424,5]
[362005323,1747933861924,-420.0,0.00033424,5]
[362005324,1747933861933,-420.0,0.00033424,10]
[362005325,1747933861942,-214.2215862,0.00033424,5]
[362005326,1747933861952,-420.0,0.00033424,5]
[362005327,1747933861961,-586.37,0.00033424,5]
[362005328,1747933861970,-559.24,0.00033424,5]
[362005329,1747933861980,-420.0,0.00033424,5]
[362005330,1747933861989,-420.0,0.00033424,5]
[362005331,1747933861999,-1122.81,0.00033424,5]
[362005332,1747933862008,-420.0,0.00033424,5]
[362005333,1747933862017,-420.0,0.00033424,5]
[362005334,1747933862027,-420.0,0.00033424,5]
[362005335,1747933862036,-420.0,0.00033424,5]
[362005336,1747933862046,-727.36,0.00033424,5]
[362005337,1747933862056,-577.39,0.00033424,5]
[362005338,1747933862065,-420.0,0.00033424,5]
[362005339,1747933862075,-644.15,0.00033424,5]
[362005340,1747933862084,-300.0,0.00033424,5]
[362005341,1747933862093,-572.15,0.00033424,5]
[362005342,1747933862103,-416.0369067,0.00033424,5]
[362005343,1747933862113,-468.10295462,0.00033424,5]
[362005344,1747933862122,-532.67,0.00033424,5]
[362005345,1747933862131,-493.12,0.00033424,5]
[362005346,1747933862141,-459.75,0.00033424,5]
[362005347,1747933862150,-843.51,0.00033424,5]
[362005348,1747933862160,-420.0,0.00033424,5]
[362005349,1747933862169,-1500.0,0.00033424,28]
[362005350,1747933862179,-1500.0,0.00033424,28]
[362005351,1747933862188,-1500.0,0.00033424,28]
[362005352,1747933862197,-1500.0,0.00033424,28]
[362005353,1747933862206,-1500.0,0.00033424,28]
[362005354,1747933862216,-1500.0,0.00033424,28]
[362005355,1747933862227,-420.0,0.00033424,5]
[362005356,1747933862236,-1500.0,0.00033424,28]
[362005357,1747933862245,-1500.0,0.00033424,28]
[362005358,1747933862255,-1500.0,0.00033424,28]
[362005359,1747933862264,-604.008132,0.00033424,28]
[362005360,1747933862273,-420.0,0.00033424,5]
[362005361,1747933862283,-420.0,0.00033424,5]
[362005362,1747933862293,-593.15,0.00033424,5]
[362005363,1747933862302,-420.0,0.00033424,5]
[362005364,1747933862311,-797.22,0.00033424,5]
[362005365,1747933862321,-533.84,0.00033424,5]
[362005366,1747933862330,-529.35,0.00033424,5]
[362005367,1747933862339,-592.14,0.00033424,5]
[362005368,1747933862348,-420.0,0.00033424,5]
[362005369,1747933862358,-420.0,0.00033424,5]
[362005370,1747933862367,-682.38,0.00033424,5]
[362005371,1747933862376,-920.85,0.00033424,5]
[362005372,1747933862385,-603.95,0.00033424,5]
[362005373,1747933862394,-420.0,0.00033424,5]
[362005374,1747933862403,-420.0,0.00033424,5]
[362005375,1747933862413,-420.0,0.00033424,5]
[362005376,1747933862422,-438.47,0.00033424,5]
[362005377,1747933862431,-420.0,0.00033424,5]
[362005378,1747933862440,-779.53,0.00033424,5]
[362005379,1747933862450,-420.0,0.00033424,5]
[362005380,1747933862459,-420.0,0.00033424,5]
[362005381,1747933862468,-420.0,0.00033424,5]
[362005382,1747933862479,-477.74,0.00033424,5]
[362005383,1747933862488,-482.75,0.00033424,5]
[362005384,1747933862497,-420.0,0.00033424,5]
[362005385,1747933862507,-323.42724904,0.00033424,5]
[362005386,1747933862517,-420.0,0.00033424,5]
[362005387,1747933862526,-430.85,0.00033424,5]
[362005388,1747933862535,-542.76440948,0.00033424,5]
[362005389,1747933862545,-420.0,0.00033424,5]
[362005390,1747933862554,-420.0,0.00033424,5]
[362005391,1747933862564,-420.0,0.00033424,5]
[362005392,1747933862573,-420.0,0.00033424,5]
[362005393,1747933862583,-420.0,0.00033424,5]
[362005394,1747933862593,-420.0,0.00033424,5]
[362005395,1747933862604,-669.62,0.00033424,5]
[362005396,1747933862613,-420.0,0.00033424,5]
[362005397,1747933862623,-420.0,0.00033424,5]
[362005398,1747933862632,-420.0,0.00033424,5]
[362005399,1747933862642,-508.77,0.00033424,5]
[362005400,1747933862651,-420.0,0.00033424,5]
[362005401,1747933862660,-420.0,0.00033424,5]
[362005402,1747933862670,-420.0,0.00033424,5]
[362005403,1747933862679,-495.88,0.00033424,5]
[362005404,1747933862689,-420.0,0.00033424,5]
[362005405,1747933862698,-459.41,0.00033424,5]
[362005406,1747933862707,-420.0,0.00033424,5]
[362005407,1747933862716,-420.0,0.00033424,5]
[362005408,1747933862726,-539.96,0.00033424,5]
[362005409,1747933862737,-420.0,0.00033424,5]
[362005410,1747933862748,-420.0,0.00033424,5]
[362005411,1747933862758,-500.0,0.00033424,5]
[362005412,1747933862767,-525.35,0.00033424,5]
[362005413,1747933862776,-420.0,0.00033424,5]
[362005414,1747933862786,-510.6,0.00033424,5]
[362005415,1747933862795,-420.0,0.00033424,5]
[362005416,1747933862804,-420.0,0.00033424,5]
[362005417,1747933862815,-420.0,0.00033424,5]
[362005418,1747933862826,-442.76,0.00033424,5]
[362005419,1747933862834,-420.0,0.00033424,5]
[362005420,1747933862844,-420.0,0.00033424,5]
[362005421,1747933862853,-420.0,0.00033424,5]
[362005422,1747933862862,-494.37,0.00033424,5]
[362005423,1747933862871,-420.0,0.00033424,5]
[362005424,1747933862880,-150.0,0.00033424,5]
[362005425,1747933862890,-420.0,0.00033424,5]
[362005426,1747933862899,-420.0,0.00033424,5]
[362005427,1747933862908,-150.0,0.00033424,5]
[362005428,1747933862918,-420.0,0.00033424,5]
[362005429,1747933862927,-420.0,0.00033424,5]
[362005430,1747933862936,-420.0,0.00033424,5]
[362005431,1747933862945,-809.26,0.00033424,5]
[362005432,1747933862955,-420.0,0.00033424,5]
[362005433,1747933862965,-420.0,0.00033424,5]
[362005434,1747933862975,-420.0,0.00033424,5]
[362005435,1747933862984,-420.0,0.00033424,5]
[362005436,1747933862993,-420.0,0.00033424,5]
[362005437,1747933863002,-769.8,0.00033424,5]
[362005438,1747933863011,-420.0,0.00033424,5]
[362005439,1747933863021,-977.72,0.00033424,5]
[362005440,1747933863030,-460.19,0.00033424,5]
[362005441,1747933863039,-420.0,0.00033424,5]
[362005442,1747933863049,-151.0,0.00033424,7]
[362005443,1747933863059,-151.0,0.00033424,7]
[362005444,1747933863068,-151.0,0.00033424,7]
[362005445,1747933863077,-466.15,0.00033424,5]
[362005446,1747933863087,-420.0,0.00033424,5]
[362005447,1747933863096,-845.24,0.00033424,5]
[362005448,1747933863105,-734.6,0.00033424,5]
[362005449,1747933863115,-420.0,0.00033424,5]
[362005450,1747933863124,-420.0,0.00033424,5]
[362005451,1747933863133,-638.11,0.00033424,5]
[362005452,1747933863143,-508.6,0.00033424,5]
[362005453,1747933863152,-465.09,0.00033424,5]
[362005454,1747933863161,-1581.76,0.00033424,5]
[362005455,1747933863170,-420.0,0.00033424,5]
[362005456,1747933863180,-437.18,0.00033424,5]
[362005457,1747933863189,-420.0,0.00033424,5]
[362005458,1747933863199,-420.0,0.00033424,5]
[362005459,1747933863208,-420.0,0.00033424,5]
[362005460,1747933863218,-870.21,0.00033424,5]
[362005461,1747933863227,-789.17,0.00033424,5]
[362005462,1747933863236,-420.0,0.00033424,5]
[362005463,1747933863246,-420.0,0.00033424,5]
[362005464,1747933863254,-649.66,0.00033424,5]
[362005465,1747933863264,-595.12,0.00033424,5]
[362005466,1747933863273,-420.0,0.00033424,5]
[362005467,1747933863284,-509.16,0.00033424,5]
[362005468,1747933863294,-420.0,0.00033424,5]
[362005469,1747933863304,-433.89,0.00033424,5]
[362005470,1747933863313,-420.0,0.00033424,5]
[362005471,1747933863323,-420.0,0.00033424,5]
[362005472,1747933863332,-420.0,0.00033424,5]
[362005473,1747933863341,-420.0,0.00033424,5]
[362005474,1747933863351,-498.61,0.00033424,5]
[362005475,1747933863360,-420.0,0.00033424,5]
[362005476,1747933863370,-580.11,0.00033424,5]
[362005477,1747933863379,-573.53,0.00033424,5]
[362005478,1747933863389,-1000.0,0.00033424,5]
[362005479,1747933863399,-420.0,0.00033424,5]
[362005480,1747933863408,-420.0,0.00033424,5]
[362005481,1747933863418,-608.49,0.00033424,5]
[362005482,1747933863428,-420.0,0.00033424,5]
[362005483,1747933863438,-425.68,0.00033424,5]
[362005484,1747933863447,-420.0,0.00033424,5]
[362005485,1747933863458,-481.58,0.00033424,5]
[362005486,1747933863467,-1071.99,0.00033424,5]
[362005487,1747933863477,-730.27,0.00033424,5]
[362005488,1747933863486,-420.0,0.00033424,5]
[362005489,1747933863496,-420.0,0.00033424,5]
[362005490,1747933863507,-420.0,0.00033424,5]
[362005491,1747933863516,-420.0,0.00033424,5]
[362005492,1747933863526,-420.0,0.00033424,5]
[362005493,1747933863535,-420.0,0.00033424,5]
[362005494,1747933863545,-451.52,0.00033424,5]
[362005495,1747933863555,-4192.77,0.00033424,5]
[362005496,1747933863565,-515.3,0.00033424,5]
[362005497,1747933863574,-420.0,0.00033424,5]
[362005498,1747933863584,-420.0,0.00033424,5]
[362005499,1747933863594,-420.0,0.00033424,5]
[362005500,1747933863603,-420.0,0.00033424,5]
[362005501,1747933863612,-420.0,0.00033424,5]
[362005502,1747933863621,-709.41,0.00033424,5]
[362005503,1747933863631,-510.74,0.00033424,5]
[362005504,1747933863640,-2867.71,0.00033424,5]
[362005505,1747933863649,-688.79,0.00033424,5]
[362005506,1747933863658,-420.0,0.00033424,5]
[362005507,1747933863668,-576.22,0.00033424,5]
[362005508,1747933863677,-478.42,0.00033424,5]
[362005509,1747933863687,-420.0,0.00033424,5]
[362005510,1747933863697,-566.07,0.00033424,5]
[362005511,1747933863706,-420.0,0.00033424,5]
[362005512,1747933863716,-636.56,0.00033424,5]
[362005513,1747933863725,-701.85,0.00033424,5]
[362005514,1747933863737,-420.0,0.00033424,5]
[362005515,1747933863748,-776.15,0.00033424,5]
[362005516,1747933863759,-420.0,0.00033424,5]
[362005517,1747933863768,-420.0,0.00033424,5]
[362005518,1747933863779,-719.59,0.00033424,5]
[362005519,1747933863788,-5440.18,0.00033424,5]
[362005520,1747933863797,-178.36051166,0.00033424,5]
[362005521,1747933863806,-420.0,0.00033424,5]
[362005522,1747933863817,-420.0,0.00033424,5]
[362005523,1747933863826,-2209.94,0.00033424,5]
[362005524,1747933863836,-420.0,0.00033424,5]
[362005525,1747933863845,-420.0,0.00033424,5]
[362005526,1747933863855,-420.0,0.00033424,5]
[362005527,1747933863864,-761.94,0.00033424,5]
[362005528,1747933863874,-6144.99,0.00033424,5]
[362005529,1747933863883,-771.06,0.00033424,5]
[362005530,1747933863893,-420.0,0.00033424,5]
[362005531,1747933863902,-151.0,0.00033424,7]
[362005532,1747933863912,-151.0,0.00033424,7]
[362005533,1747933863921,-151.0,0.00033424,7]
[362005534,1747933863931,-689.72,0.00033424,5]
[362005535,1747933863940,-420.0,0.00033424,5]
[362005536,1747933863950,-557.56,0.00033424,5]
[362005537,1747933863959,-698.33,0.00033424,5]
[362005538,1747933863969,-681.1,0.00033424,5]
[362005539,1747933863978,-441.16842061,0.00033424,5]
[362005540,1747933863987,-951.74,0.00033424,5]
[362005541,1747933863997,-420.0,0.00033424,5]
[362005542,1747933864006,-420.0,0.00033424,5]
[362005543,1747933864016,-1002.07,0.00033424,5]
[362005544,1747933864025,-420.0,0.00033424,5]
[362005545,1747933864035,-176.63577721,0.00033424,5]
[362005546,1747933864044,-2150.16,0.00033424,5]
[362005547,1747933864054,-349.48409407,0.00033424,5]
[362005548,1747933864514,-144.27019293,0.00033424,5]
[362005549,1747933864524,-420.0,0.00033424,5]
[362005550,1747933864533,-769.67,0.00033424,5]
[362005551,1747933864543,-1224.35,0.00033424,5]
[362005552,1747933864552,-728.12,0.00033424,5]
[362005553,1747933864561,-941.44,0.00033424,5]
[362005554,1747933864571,-1921.29,0.00033424,5]
[362005555,1747933864580,-420.0,0.00033424,5]
[362005556,1747933864590,-420.0,0.00033424,5]
[362005557,1747933864599,-570.73,0.00033424,5]
[362005558,1747933864608,-420.0,0.00033424,5]
[362005559,1747933864618,-625.47,0.00033424,5]
[362005560,1747933864627,-420.0,0.00033424,5]
[362005561,1747933864636,-420.0,0.00033424,5]
[362005562,1747933864645,-194.47061124,0.00033424,5]
[362005563,1747933864654,-231.11344164,0.00033424,5]
[362005564,1747933864663,-420.0,0.00033424,5]
[362005565,1747933864672,-3607.16,0.00033424,5]
[362005566,1747933864682,-981.4,0.00033424,5]
[362005567,1747933864691,-264.39617657,0.00033424,5]
[362005568,1747933864700,-420.0,0.00033424,5]
[362005569,1747933864710,-1224.05,0.00033424,5]
[362005570,1747933864719,-420.0,0.00033424,5]
[362005571,1747933864729,-420.0,0.00033424,5]
[362005572,1747933864741,-769.81,0.00033424,5]
[362005573,1747933864750,-420.0,0.00033424,5]
[362005574,1747933864759,-420.0,0.00033424,5]
[362005575,1747933864768,-420.0,0.00033424,5]
[362005576,1747933864778,-537.06,0.00033424,5]
[362005577,1747933864788,-4553.04,0.00033424,5]
[362005578,1747933864797,-420.0,0.00033424,5]
[362005579,1747933864806,-1136.33,0.00033424,5]
[362005580,1747933864817,-602.44,0.00033424,5]
[362005581,1747933864826,-420.0,0.00033424,5]
[362005582,1747933864835,-682.83,0.00033424,5]
[362005583,1747933864845,-545.53,0.00033424,5]
[362005584,1747933864856,-617.12,0.00033424,5]
[362005585,1747933864866,-420.0,0.00033424,5]
[362005586,1747933864875,-578.41,0.00033424,5]
[362005587,1747933864885,-420.0,0.00033424,5]
[362005588,1747933864894,-20351.89,0.00033424,5]
[362005589,1747933864903,-476.43,0.00033424,5]
[362005590,1747933864914,-477.04,0.00033424,5]
[362005591,1747933864923,-420.0,0.00033424,5]
[362005592,1747933864932,-490.47,0.00033424,5]
[362005593,1747933864941,-420.0,0.00033424,5]
[362005594,1747933864951,-420.0,0.00033424,5]
[362005595,1747933864960,-420.0,0.00033424,5]
[362005596,1747933864971,-420.0,0.00033424,5]
[362005597,1747933864980,-420.0,0.00033424,5]
[362005598,1747933864989,-811.02,0.00033424,5]
[362005599,1747933864998,-1689.12,0.00033424,5]
[362005600,1747933865008,-1378.26,0.00033424,5]
[362005601,1747933865018,-505.25,0.00033424,5]
[362005602,1747933865027,-898.43,0.00033424,5]
[362005603,1747933865036,-420.0,0.00033424,5]
[362005604,1747933865045,-420.0,0.00033424,5]
[362005605,1747933865054,-997.18,0.00033424,5]
[362005606,1747933865063,-420.0,0.00033424,5]
[362005607,1747933865072,-660.15,0.00033424,5]
[362005608,1747933865081,-420.0,0.00033424,5]
[362005609,1747933865090,-703.8,0.00033424,5]
[362005610,1747933865100,-420.0,0.00033424,5]
[362005611,1747933865109,-151.0,0.00033424,7]
[362005612,1747933865118,-550.31,0.00033424,5]
[362005613,1747933865127,-158.55404,0.00033424,7]
[362005614,1747933865137,-449.16,0.00033424,5]
[362005615,1747933865147,-550.58,0.00033424,5]
[362005616,1747933865289,-420.0,0.00033424,5]
[362005617,1747933865308,-472.36,0.00033424,5]
[362005618,1747933865317,-822.44,0.00033424,5]
[362005619,1747933865326,-716.72,0.00033424,5]
[362005620,1747933865335,-420.0,0.00033424,5]
[362005621,1747933865345,-420.0,0.00033424,5]
[362005622,1747933865354,-420.0,0.00033424,5]
[362005623,1747933865363,-1008.83,0.00033424,5]
[362005624,1747933865372,-867.21,0.00033424,5]
[362005625,1747933865381,-469.62,0.00033424,5]
[362005626,1747933865391,-745.26,0.00033424,5]
[362005627,1747933865401,-652.81,0.00033424,5]
[362005628,1747933865410,-420.0,0.00033424,5]
[362005629,1747933865419,-420.0,0.00033424,5]
[362005630,1747933865428,-420.0,0.00033424,5]
[362005631,1747933865438,-420.0,0.00033424,5]
[362005632,1747933865447,-420.0,0.00033424,5]
[362005633,1747933865457,-441.89,0.00033424,5]
[362005634,1747933865466,-420.0,0.00033424,5]
[362005635,1747933865476,-420.0,0.00033424,5]
[362005636,1747933865485,-1035.38,0.00033424,5]
[362005637,1747933865495,-420.0,0.00033424,5]
[362005638,1747933865505,-420.0,0.00033424,5]
[362005639,1747933865515,-420.0,0.00033424,5]
[362005640,1747933865526,-916.68,0.00033424,5]
[362005641,1747933865535,-1558.06,0.00033424,5]
[362005642,1747933865544,-420.0,0.00033424,5]
[362005643,1747933865554,-420.0,0.00033424,5]
[362005644,1747933865563,-420.0,0.00033424,5]
[362005645,1747933865572,-420.0,0.00033424,5]
[362005646,1747933865582,-9657.78,0.00033424,5]
[362005647,1747933865591,-150.812497,0.00033424,5]
[362005648,1747933865601,-856.88,0.00033424,5]
[362005649,1747933865610,-420.0,0.00033424,5]
[362005650,1747933865619,-420.0,0.00033424,5]
[362005651,1747933865629,-420.0,0.00033424,5]
[362005652,1747933865638,-1492.64,0.00033424,2]
[362005653,1747933865648,-420.0,0.00033424,5]
[362005654,1747933865657,-420.0,0.00033424,5]
[362005655,1747933865667,-852.89,0.00033424,5]
[362005656,1747933865676,-989.21,0.00033424,5]
[362005657,1747933865685,-662.91,0.00033424,5]
[362005658,1747933865695,-420.0,0.00033424,5]
[362005659,1747933865704,-482.81,0.00033424,5]
[362005660,1747933865714,-712.38,0.00033424,5]
[362005661,1747933865723,-420.0,0.00033424,5]
[362005662,1747933865734,-852.65,0.00033424,5]
[362005663,1747933865748,-420.0,0.00033424,5]
[362005664,1747933865758,-689.38,0.00033424,5]
[362005665,1747933865767,-420.0,0.00033424,5]
[362005666,1747933865777,-944.19,0.00033424,5]
[362005667,1747933865789,-420.0,0.00033424,5]
[362005668,1747933865798,-763.73,0.00033424,5]
[362005669,1747933865808,-420.0,0.00033424,5]
[362005670,1747933865818,-420.0,0.00033424,5]
[362005671,1747933865829,-682.05,0.00033424,5]
[362005672,1747933865839,-420.0,0.00033424,5]
[362005673,1747933865848,-508.79,0.00033424,5]
[362005674,1747933865858,-420.0,0.00033424,5]
[362005675,1747933865867,-1132.56,0.00033424,5]
[362005676,1747933865877,-420.0,0.00033424,5]
[362005677,1747933865887,-7060.32,0.00033424,2]
[362005678,1747933865896,-420.0,0.00033424,5]
[362005679,1747933865905,-587.53,0.00033424,5]
[362005680,1747933865915,-420.0,0.00033424,5]
[362005681,1747933865924,-420.0,0.00033424,5]
[362005682,1747933865933,-538.68,0.00033424,5]
[362005683,1747933865943,-1684.49,0.00033424,5]
[362005684,1747933865953,-2664.69,0.00033424,5]
[362005685,1747933865963,-472.67,0.00033424,5]
[362005686,1747933865972,-420.0,0.00033424,5]
[362005687,1747933865983,-1992.63,0.00033424,5]
[362005688,1747933865992,-420.0,0.00033424,5]
[362005689,1747933866002,-834.06,0.00033424,5]
[362005690,1747933866012,-760.49,0.00033424,5]
[362005691,1747933866022,-420.0,0.00033424,5]
[362005692,1747933866031,-695.29,0.00033424,5]
[362005693,1747933866041,-420.0,0.00033424,5]
[362005694,1747933866051,-487.94,0.00033424,5]
[362005695,1747933866060,-3002.7,0.00033424,5]
[362005696,1747933866070,-420.0,0.00033424,5]
[362005697,1747933866079,-714.9,0.00033424,5]
[362005698,1747933866088,-420.0,0.00033424,5]
[362005699,1747933866098,-420.0,0.00033424,5]
[362005700,1747933866108,-420.0,0.00033424,5]
[362005701,1747933866117,-420.0,0.00033424,5]
[362005702,1747933866127,-926.84,0.00033424,5]
[362005703,1747933866136,-420.0,0.00033424,5]
[362005704,1747933866146,-1535.61,0.00033424,5]
[362005705,1747933866156,-1008.31,0.00033424,5]
[362005706,1747933866165,-420.0,0.00033424,5]
[362005707,1747933866175,-790.41,0.00033424,5]
[362005708,1747933866184,-420.0,0.00033424,5]
[362005709,1747933866194,-420.0,0.00033424,5]
[362005710,1747933866204,-420.0,0.00033424,5]
[362005711,1747933866213,-420.0,0.00033424,5]
[362005712,1747933866223,-498.17,0.00033424,5]
[362005713,1747933866233,-420.0,0.00033424,5]
[362005714,1747933866242,-762.76,0.00033424,5]
[362005715,1747933866251,-803.17,0.00033424,5]
[362005716,1747933866261,-671.75,0.00033424,5]
[362005717,1747933866270,-496.74,0.00033424,5]
[362005718,1747933866279,-990.41,0.00033424,5]
[362005719,1747933866289,-420.0,0.00033424,5]
[362005720,1747933866298,-611.86,0.00033424,5]
[362005721,1747933866307,-603.63,0.00033424,5]
[362005722,1747933866317,-497.27,0.00033424,5]
[362005723,1747933866326,-420.0,0.00033424,5]
[362005724,1747933866335,-420.0,0.00033424,5]
[362005725,1747933866345,-151.79,0.00033424,2]
[362005726,1747933866354,-200.0,0.00033427,10]
[362005727,1747933866364,-150.0,0.00033451,5]
[362005728,1747933866374,-398.35904497,0.00033456,15]
[362005729,1747933866384,-200.0,0.00033479,5]
[362005730,1747933866393,-500.0,0.00033483,5]
[362005731,1747933866403,-201.43962383,0.0003355,29]
[362005732,1747933866413,-151.0,0.00033688,7]
[362005733,1747933866424,-151.0,0.00033688,7]
[362005734,1747933866434,-151.0,0.00033696,7]
[362005735,1747933866444,-1081.22,0.00033696,120]
[362005736,1747933866453,-151.0,0.00033697,7]